bitfinex/quotes_ETHUSD_20240827
["timestamp","ask_amount","ask_price","bid_price","bid_amount"]
[1724773425799,7.7153,2592.1,2592.0,15.12406]
[1724773425995,2.50843541,2592.6,2592.5,7.71456]
[1724773426201,22.67169,2593.2,2592.7,3.85697]
[1724773426202,2.50843541,2593.0,2592.7,3.85697]
[1724773426535,2.50843541,2593.0,2592.5,6.85719]
[1724773426717,2.50843541,2593.0,2592.5,10.71438]
[1724773426921,2.50843541,2593.0,2592.6,3.85709]
[1724773427332,2.50843541,2593.0,2592.7,3.85689]
[1724773428108,2.50843541,2593.0,2592.5,6.85719]
[1724773428310,5.02644795,2593.0,2592.5,6.85719]
[1724773429229,5.02644795,2593.0,2592.5,3.0]
[1724773429930,5.02644795,2593.0,2592.5,6.85726]
[1724773430240,2.51801254,2593.0,2592.5,6.85726]
[1724773430402,0.25180125,2592.9,2592.5,3.0]
[1724773430742,3.4836,2592.8,2592.4,3.0]
[1724773430955,3.4836,2592.8,2592.5,3.85725]
[1724773431461,2.51801254,2593.0,2592.5,3.85725]
[1724773431604,3.4836,2593.1,2592.5,3.85725]
[1724773431803,3.4836,2593.1,2592.7,3.85698]
[1724773432008,3.4836,2593.1,2592.9,3.85665]
[1724773434467,3.4836,2593.1,2592.8,3.85679]
[1724773434829,2.50843541,2593.2,2592.9,3.85668]
[1724773435148,3.368,2593.3,2592.9,3.85668]
[1724773436014,3.368,2593.3,2592.7,3.85684]
[1724773436358,3.368,2593.3,2592.8,3.85682]
[1724773437754,0.03554376,2593.2,2592.8,3.85682]
[1724773438073,3.368,2593.3,2592.8,3.85682]
[1724773438254,0.03554376,2593.1,2592.8,7.71356]
[1724773438576,0.03554376,2593.0,2592.8,3.85674]
[1724773438766,3.95564354,2593.3,2592.8,3.85674]
[1724773439058,0.03554376,2592.9,2592.8,3.85674]
[1724773439263,3.95564354,2593.3,2592.8,7.71349]
[1724773439426,0.03554376,2592.9,2592.8,3.85674]
[1724773439631,2.50843541,2593.5,2592.8,3.85674]
[1724773439826,0.03554376,2592.9,2592.8,3.85674]
[1724773440020,2.50843541,2593.5,2592.8,3.85674]
[1724773440223,0.03554376,2592.9,2592.8,3.85674]
[1724773440439,7.71167695,2593.5,2592.7,3.85696]
[1724773440714,0.46473369,2593.4,2592.7,3.85696]
[1724773440909,0.03554376,2593.3,2592.7,3.85696]
[1724773441556,3.3682,2593.2,2592.5,3.85715]
[1724773441712,0.72599038,2593.1,2592.4,3.0]
[1724773441915,0.72599038,2593.1,2592.4,6.85735]
[1724773441916,0.03554376,2593.0,2592.4,6.85735]
[1724773442814,0.03554376,2593.0,2592.5,3.85727]
[1724773445337,0.44851717,2593.0,2592.5,3.85727]
[1724773446141,0.44851717,2593.0,2592.5,7.71447]
[1724773446342,0.44851717,2593.0,2592.5,7.71439]
[1724773446549,0.44851717,2593.0,2592.5,3.85719]
[1724773446954,0.44851717,2593.0,2592.5,7.71439]
[1724773447174,0.03554376,2593.0,2592.6,3.85713]
[1724773447354,5.87663541,2593.2,2592.7,3.85687]
[1724773447554,5.87663541,2593.2,2592.8,3.85683]
[1724773447555,0.03557983,2592.9,2592.8,3.85683]
[1724773447755,5.87663541,2593.2,2592.8,3.85683]
[1724773447959,0.03557983,2592.9,2592.8,7.71366]
[1724773448289,5.87663541,2593.2,2592.8,7.71366]
[1724773448587,6.51077232,2593.2,2592.6,3.85698]
[1724773448756,0.03557983,2593.1,2592.6,3.85698]
[1724773449077,0.03557983,2593.1,2592.5,3.85726]
[1724773449278,0.69021505,2593.1,2592.5,3.85726]
[1724773450043,0.65463522,2593.1,2592.5,3.8572]
[1724773450248,0.03564473,2593.0,2592.5,3.8572]
[1724773450448,0.69233627,2593.0,2592.5,3.8572]
[1724773450673,0.69233627,2593.0,2592.4,6.8574]
[1724773450892,0.69233627,2593.0,2592.4,3.0]
[1724773450893,3.4373,2592.9,2592.4,3.0]
[1724773451048,0.41296363,2592.8,2592.4,3.0]
[1724773451246,0.44855789,2592.8,2592.4,3.0]
[1724773453369,0.03559426,2592.8,2592.4,3.0]
[1724773453581,0.03559426,2592.8,2592.6,3.85711]
[1724773453840,0.03559426,2592.8,2592.7,3.85698]
[1724773454042,2.50843541,2593.2,2592.7,3.85698]
[1724773454043,6.03443541,2593.2,2592.7,3.85698]
[1724773454286,6.63787895,2593.2,2592.7,3.85698]
[1724773454497,0.03559426,2593.1,2592.7,3.85698]
[1724773454653,0.03559426,2593.1,2592.6,7.71405]
[1724773455280,0.03559426,2593.1,2592.7,3.85695]
[1724773456472,0.03559426,2593.1,2592.6,7.71401]
[1724773456674,0.03559426,2593.1,2592.6,3.85699]
[1724773457466,0.03559426,2593.1,2592.6,7.71402]
[1724773457893,0.03559426,2593.1,2592.7,3.85692]
[1724773458867,0.03559426,2593.1,2592.6,3.85699]
[1724773459261,0.03559426,2593.1,2592.7,3.85696]
[1724773459591,0.03559426,2593.1,2592.6,3.85699]
[1724773460160,0.03559426,2593.1,2593.0,3.85653]
[1724773460565,0.03559426,2593.1,2593.0,7.71306]
[1724773460795,5.97313541,2593.5,2593.1,3.85636]
[1724773462877,5.97313541,2593.5,2592.7,3.85692]
[1724773462878,6.57044895,2593.5,2592.7,3.85692]
[1724773463080,6.57044895,2593.5,2592.8,3.0]
[1724773463289,3.3545,2593.4,2592.8,3.0]
[1724773463707,3.3545,2593.4,2592.8,6.85681]
[1724773463906,0.6460249,2593.3,2592.8,6.85681]
[1724773465974,0.6460249,2593.3,2592.8,3.0]
[1724773466197,0.6460249,2593.3,2592.6,3.0]
[1724773466198,3.5246,2593.2,2592.6,3.0]
[1724773466396,3.5246,2593.2,2592.5,6.85726]
[1724773467304,3.5246,2593.2,2592.5,3.0]
[1724773467609,0.738078,2593.1,2592.5,3.0]
[1724773467820,0.77383817,2593.1,2592.5,6.85725]
[1724773467984,0.77383817,2593.1,2592.6,3.85712]
[1724773468335,0.03576017,2593.1,2592.6,3.85712]
[1724773469574,0.03576017,2593.1,2592.6,3.85704]
[1724773469882,0.03576017,2593.1,2592.8,3.85675]
[1724773470493,0.03576017,2593.1,2592.8,7.7135]
[1724773470707,0.03576017,2593.1,2592.8,3.85675]
[1724773471711,0.03576017,2593.1,2592.8,7.71349]
[1724773471909,0.03576017,2593.1,2592.9,3.85658]
[1724773472274,3.5246,2593.2,2592.9,3.85658]
[1724773472612,0.03467714,2593.1,2592.9,3.85658]
[1724773472813,3.5246,2593.2,2592.9,3.85658]
[1724773473020,0.03467714,2593.0,2592.9,3.85658]
[1724773473315,3.5246,2593.2,2592.9,3.85658]
[1724773473486,0.03467714,2593.0,2592.9,3.85658]
[1724773473686,3.5246,2593.2,2592.9,3.85658]
[1724773473903,0.03467714,2593.0,2592.9,3.85658]
[1724773474078,3.5246,2593.2,2592.9,3.85658]
[1724773474276,0.03467714,2593.0,2592.7,3.85697]
[1724773474483,3.5246,2593.2,2592.8,3.0]
[1724773474715,0.03472764,2592.9,2592.7,3.0]
[1724773474883,3.87706,2593.2,2592.6,3.0]
[1724773475088,0.03472764,2592.8,2592.6,3.0]
[1724773475287,0.773322,2593.1,2592.6,3.0]
[1724773475520,0.03472764,2592.7,2592.6,3.0]
[1724773475682,3.87706,2593.2,2592.6,6.85704]
[1724773475881,4.297907,2593.2,2592.6,6.85704]
[1724773476121,0.03472764,2593.1,2592.6,6.85704]
[1724773478588,0.03472764,2593.1,2592.7,3.85692]
[1724773479825,0.03472764,2593.1,2592.9,3.85667]
[1724773480294,0.03472764,2593.1,2592.8,3.85681]
[1724773480494,0.03472764,2593.1,2592.7,3.85692]
[1724773480724,0.3906604,2593.1,2592.7,3.85692]
[1724773481386,0.3906604,2593.1,2592.7,3.85691]
[1724773481586,0.03472764,2593.1,2592.7,7.71381]
[1724773481785,0.03472764,2593.1,2592.8,3.85679]
[1724773482208,0.03472764,2593.1,2592.7,3.8569]
[1724773482399,0.03472764,2593.1,2592.7,7.71378]
[1724773482723,3.5246,2593.2,2592.7,7.71378]
[1724773482928,3.5246,2593.2,2592.7,3.85688]
[1724773483219,3.5246,2593.2,2592.8,3.8568]
[1724773483422,3.5246,2593.2,2592.7,7.71378]
[1724773483797,3.5246,2593.2,2592.8,3.85682]
[1724773484635,4.4176662,2593.0,2592.3,0.80781887]
[1724773484927,4.4176662,2593.0,2592.1,3.85787]
[1724773484928,3.4885,2592.8,2592.1,3.85787]
[1724773485125,3.4885,2592.8,2592.0,0.80781887]
[1724773485431,3.4885,2592.8,2592.1,3.85778]
[1724773485579,3.4885,2592.8,2592.1,7.71558]
[1724773485785,3.4885,2592.8,2592.1,3.85778]
[1724773486014,0.62291156,2592.7,2592.1,3.85778]
[1724773486414,0.62291156,2592.7,2592.2,3.0]
[1724773486796,0.62291156,2592.7,2592.2,6.85761]
[1724773487527,0.62291156,2592.7,2592.3,3.85749]
[1724773487729,3.4885,2592.8,2592.3,3.85749]
[1724773487886,3.4885,2592.8,2592.4,3.85735]
[1724773488888,19.49999,2593.0,2592.7,3.85689]
[1724773488889,22.86939,2593.0,2592.7,3.85689]
[1724773489791,3.3694,2593.0,2592.7,3.85689]
[1724773489996,3.3694,2593.0,2592.6,3.85713]
[1724773490215,3.3694,2593.0,2592.6,7.71426]
[1724773490531,3.3694,2593.0,2592.6,3.85713]
[1724773491131,3.3694,2593.0,2592.5,3.85727]
[1724773491626,3.3694,2593.0,2592.6,3.85707]
[1724773492088,3.3694,2593.0,2592.5,3.85727]
[1724773493307,3.3694,2593.0,2592.3,4.66528887]
[1724773493308,3.70634,2593.0,2592.3,8.52276887]
[1724773493507,3.70634,2593.0,2592.4,3.0]
[1724773495034,3.70634,2593.0,2592.4,6.85737]
[1724773495905,6.36462541,2593.3,2592.9,3.8566]
[1724773495906,5.77773541,2593.3,2592.9,3.8566]
[1724773496111,3.2693,2593.3,2592.7,3.85688]
[1724773496321,3.2693,2593.3,2592.4,7.66522887]
[1724773496322,7.45234,2593.3,2592.4,7.66522887]
[1724773496534,7.45234,2593.3,2592.5,3.85724]
[1724773496535,3.3885,2593.2,2592.5,3.85724]
[1724773496711,3.760043,2593.2,2592.6,3.0]
[1724773500300,3.2492,2593.1,2592.4,3.0]
[1724773500502,3.9968993,2593.0,2592.4,3.0]
[1724773500721,3.2492,2593.0,2592.4,3.0]
[1724773501634,3.2492,2593.0,2592.4,6.85742]
[1724773501839,3.2492,2593.0,2592.4,3.0]
[1724773502633,3.2492,2593.0,2592.1,3.85778]
[1724773502634,3.4218,2592.8,2592.1,3.85778]
[1724773502796,2.50843541,2592.9,2592.5,3.85727]
[1724773503002,2.50843541,2592.9,2592.2,8.22548507]
[1724773503236,3.4218,2592.8,2592.2,3.0]
[1724773503539,0.727857,2592.7,2592.2,3.85771]
[1724773503756,3.4218,2592.8,2592.3,3.85748]
[1724773504461,3.4218,2592.8,2592.4,3.8574]
[1724773504628,3.4218,2592.8,2592.6,3.85713]
[1724773504937,3.4218,2592.8,2592.6,4.4176662]
[1724773505137,3.4218,2592.8,2592.7,3.85698]
[1724773505299,3.4917,2593.2,2592.8,3.85676]
[1724773506244,3.4917,2593.2,2592.8,7.71349]
[1724773506613,3.4917,2593.2,2592.8,8.2743962]
[1724773506808,3.4917,2593.2,2592.5,3.0]
[1724773506809,3.4559,2593.4,2593.1,4.4176662]
[1724773507017,3.4559,2593.4,2593.1,8.2740362]
[1724773507447,3.4559,2593.4,2593.1,8.2739662]
[1724773507742,3.4559,2593.4,2593.1,12.1302662]
[1724773508049,3.4559,2593.4,2592.9,11.2742362]
[1724773508349,3.80149,2593.4,2592.9,3.0]
[1724773508547,3.4559,2593.0,2592.3,3.85746]
[1724773508700,3.4559,2592.8,2592.3,3.85746]
[1724773508900,3.4559,2592.8,2592.4,3.85742]
[1724773509326,3.4559,2592.8,2592.2,8.2752762]
[1724773509503,3.4559,2592.8,2592.3,3.8575]
[1724773510005,3.80149,2592.8,2592.2,4.4176662]
[1724773510318,5.73149,2592.8,2592.2,8.2752662]
[1724773510529,5.73149,2592.8,2592.3,3.85755]
[1724773510844,5.73149,2592.8,2592.4,3.85742]
[1724773511021,5.3859,2592.8,2592.4,3.85742]
[1724773511339,5.3859,2592.8,2592.6,3.85702]
[1724773511542,5.3859,2592.8,2592.5,3.85727]
[1724773511710,5.3859,2592.8,2592.4,8.2750062]
[1724773512222,5.92449,2592.8,2592.2,7.4176662]
[1724773512403,5.92449,2592.8,2592.3,3.0]
[1724773513250,5.92449,2592.8,2592.3,6.85757]
[1724773513406,5.3859,2592.8,2592.3,6.85757]
[1724773513607,5.3859,2592.8,2592.5,3.85725]
[1724773513829,5.3859,2592.8,2592.4,4.4176662]
[1724773514244,5.3859,2592.8,2592.3,3.0]
[1724773514945,5.3859,2592.8,2592.1,4.66567887]
[1724773514946,5.3859,2592.8,2592.2,3.0]
[1724773515122,0.53859,2592.7,2592.2,3.0]
[1724773515748,3.4731,2592.6,2592.2,6.8577]
[1724773516041,3.4731,2592.6,2592.2,3.0]
[1724773516255,3.4731,2592.6,2592.1,3.0]
[1724773516410,4.067269,2592.6,2592.1,3.0]
[1724773516752,4.067269,2592.6,2592.1,6.8578]
[1724773516954,4.067269,2592.6,2592.1,3.0]
[1724773517434,4.067269,2592.6,2592.1,6.85783]
[1724773517959,3.4479,2592.4,2591.8,12.94198507]
[1724773518122,3.4479,2592.4,2591.8,8.2759062]
[1724773518319,3.4479,2592.4,2591.8,4.4176662]
[1724773518532,0.39084859,2592.3,2591.8,8.2759662]
[1724773519320,0.39084859,2592.3,2591.9,3.0]
[1724773519650,0.39084859,2592.3,2591.8,8.2759662]
[1724773519823,0.39084859,2592.3,2591.8,3.8583]
[1724773520020,3.1966,2592.1,2591.6,0.80781887]
[1724773520332,3.1966,2592.1,2591.4,9.08425507]
[1724773520644,3.1966,2592.1,2591.4,4.4176662]
[1724773520851,3.1966,2592.1,2591.2,4.66691887]
[1724773521013,3.1966,2591.9,2591.4,3.85884]
[1724773521212,3.1966,2591.9,2591.4,7.71768]
[1724773521416,2.50843541,2592.1,2591.8,3.8583]
[1724773521611,3.3668,2592.3,2591.9,4.4176662]
[1724773521941,34.48842541,2592.4,2592.1,8.2754562]
[1724773522342,34.48842541,2592.4,2592.1,4.4176662]
[1724773522547,34.48842541,2592.4,2592.1,8.2755062]
[1724773522929,34.48842541,2592.4,2592.1,4.4176662]
[1724773523131,34.48842541,2592.4,2591.7,6.8584]
[1724773523368,34.48842541,2592.4,2591.7,10.71677]
[1724773523369,35.83787331,2592.4,2591.7,10.71677]
[1724773523582,35.83787331,2592.4,2591.7,3.0]
[1724773523747,6.93168733,2592.3,2591.7,3.0]
[1724773524080,6.93168733,2592.3,2591.8,4.4176662]
[1724773524241,6.93168733,2592.3,2591.9,3.0]
[1724773525369,6.93168733,2592.3,2591.5,3.85868]
[1724773525370,6.93168733,2592.3,2591.6,8.2762762]
[1724773525701,3.3479,2592.3,2591.7,3.0]
[1724773525873,3.3479,2592.3,2591.7,6.85846]
[1724773526092,2.50843541,2592.4,2592.3,3.85757]
[1724773526293,2.50843541,2592.4,2592.2,8.2752762]
[1724773526440,2.50843541,2592.4,2592.2,4.4176662]
[1724773527185,5.71423541,2592.4,2592.0,4.4176662]
[1724773527368,5.71423541,2592.4,2592.1,3.0]
[1724773528546,6.8789077,2592.4,2591.9,3.0]
[1724773528772,6.8789077,2592.4,2591.9,6.85815]
[1724773529279,6.8789077,2592.4,2591.9,3.0]
[1724773529894,6.8789077,2592.4,2591.9,6.85816]
[1724773530048,6.8789077,2592.4,2591.9,11.2758262]
[1724773531274,5.71423541,2592.4,2591.9,11.2758262]
[1724773531592,3.2058,2592.4,2591.9,11.2758262]
[1724773532587,3.2058,2592.4,2592.1,8.2754262]
[1724773532886,3.2058,2592.4,2592.1,8.2754462]
[1724773533072,25.41562541,2592.6,2592.1,8.2754462]
[1724773535395,25.41562541,2592.6,2592.1,4.4176662]
[1724773535693,25.41562541,2592.6,2592.0,3.85792]
[1724773535853,25.41562541,2592.6,2592.0,3.85791]
[1724773537506,25.41562541,2592.6,2591.9,7.4176662]
[1724773537507,9.03588295,2592.6,2591.9,3.0]
[1724773537721,3.3323,2592.4,2591.4,3.85883]
[1724773537874,3.3323,2592.4,2591.2,4.51822831]
[1724773537875,3.3323,2592.0,2591.2,3.85909]
[1724773538073,7.19047,2591.9,2591.0,4.66717887]
[1724773538273,1.104851,2591.8,2591.0,7.71879]
[1724773538488,1.104851,2591.8,2591.0,7.71878]
[1724773538693,3.3323,2591.7,2591.0,3.85936]
[1724773539211,3.3323,2591.7,2590.8,3.8597]
[1724773539696,3.3323,2591.7,2590.9,3.85965]
[1724773539906,3.3323,2591.7,2590.9,4.4176662]
[1724773540073,3.3323,2591.7,2591.0,3.85949]
[1724773540272,3.4214,2591.6,2590.7,4.4176662]
[1724773540479,3.4214,2591.6,2590.6,3.86002]
[1724773540803,3.4214,2591.5,2590.6,3.86002]
[1724773540967,3.4214,2591.5,2590.6,7.72004]
[1724773541167,3.4214,2591.3,2590.7,3.85994]
[1724773541412,3.4214,2591.3,2590.9,3.85956]
[1724773542010,3.4214,2591.9,2591.1,3.85935]
[1724773542212,7.72135662,2591.9,2591.0,3.85941]
[1724773542420,3.4214,2591.7,2591.0,3.85941]
[1724773542576,3.85863,2591.6,2590.8,3.85969]
[1724773542904,3.2078,2591.5,2590.9,3.0]
[1724773543809,3.2078,2591.5,2590.9,6.85953]
[1724773544692,3.2078,2591.5,2591.0,3.85949]
[1724773545027,3.2078,2591.5,2590.9,3.0]
[1724773545217,3.6013772,2591.5,2590.9,3.0]
[1724773545411,3.6013772,2591.5,2590.9,6.85962]
[1724773546818,3.6013772,2591.5,2591.0,3.85948]
[1724773547735,3.6013772,2591.5,2590.9,6.85965]
[1724773548428,3.2078,2591.5,2590.9,6.85965]
[1724773548928,3.2078,2591.5,2591.0,3.85942]
[1724773550639,3.2078,2591.5,2590.9,6.85965]
[1724773551231,3.3746,2591.3,2590.6,3.86003]
[1724773551388,3.3746,2591.3,2590.7,3.0]
[1724773551833,3.2743,2591.2,2590.4,3.86033]
[1724773552050,3.2743,2591.1,2590.1,3.86073]
[1724773552349,3.339,2591.0,2590.2,3.86061]
[1724773552558,3.339,2591.0,2590.3,3.86053]
[1724773552837,6.48335462,2591.0,2590.3,3.86048]
[1724773553155,3.339,2591.0,2590.6,3.86001]
[1724773553306,3.339,2591.0,2590.5,3.86024]
[1724773554241,3.339,2591.0,2590.3,6.86046]
[1724773554403,5.622899,2591.0,2590.4,3.0]
[1724773555041,5.622899,2591.0,2590.4,6.86038]
[1724773555218,5.622899,2591.0,2590.4,10.72071]
[1724773555416,5.622899,2591.0,2590.5,3.86024]
[1724773556035,5.622899,2591.0,2590.4,6.86033]
[1724773556240,5.622899,2591.0,2590.4,10.72063]
[1724773556544,3.339,2591.0,2590.4,10.72062]
[1724773556853,3.339,2591.0,2590.4,6.8603]
[1724773557006,3.339,2591.0,2590.4,10.72063]
[1724773557602,3.339,2591.0,2590.4,6.8603]
[1724773558410,5.622899,2591.0,2590.4,6.8603]
[1724773559041,5.622899,2591.0,2590.5,3.86023]
[1724773560510,5.622899,2591.0,2590.4,6.8603]
[1724773561613,5.622899,2591.0,2590.5,3.86025]
[1724773561815,5.622899,2591.0,2590.4,6.8603]
[1724773562011,4.0839899,2590.9,2590.3,3.86055]
[1724773564091,4.0839899,2590.9,2590.2,3.86068]
[1724773564498,3.5125,2590.8,2590.1,3.86082]
[1724773564803,3.5125,2590.8,2590.6,3.86009]
[1724773564966,3.5125,2590.8,2590.5,4.4176662]
[1724773565478,3.5125,2590.8,2590.4,3.86031]
[1724773565656,3.5125,2590.8,2590.5,3.86025]
[1724773566755,3.5125,2590.8,2590.5,8.2779162]
[1724773568821,3.2927,2591.0,2590.7,8.2775762]
[1724773568973,3.2927,2591.0,2590.7,4.4176662]
[1724773569176,3.2927,2591.0,2590.8,3.8598]
[1724773570475,3.2927,2591.0,2590.7,8.2776162]
[1724773571508,5.69333541,2591.3,2590.8,3.0]
[1724773572991,3.1849,2591.3,2590.8,3.0]
[1724773574480,3.1849,2591.3,2590.8,6.85972]
[1724773574808,2.50843541,2591.5,2591.3,3.85894]
[1724773574971,2.50843541,2591.5,2591.1,3.85926]
[1724773576993,2.50843541,2591.5,2591.1,7.71853]
[1724773577202,2.50843541,2591.5,2591.1,3.85926]
[1724773577400,2.50843541,2591.5,2591.2,3.85921]
[1724773577807,2.50843541,2591.8,2591.3,4.49484962]
[1724773578112,22.00842541,2592.0,2591.7,3.85836]
[1724773578316,2.50843541,2592.3,2592.1,3.85773]
[1724773578567,3.3296,2592.5,2591.8,6.85831]
[1724773578771,4.91056,2592.5,2591.8,6.85831]
[1724773578916,4.91056,2592.5,2591.9,3.85816]
[1724773579862,4.91056,2592.5,2591.8,3.0]
[1724773580157,4.91056,2592.5,2591.8,6.85823]
[1724773582136,4.91056,2592.5,2591.9,3.85816]
[1724773583571,0.39706441,2592.4,2591.8,3.0]
[1724773583781,0.39706441,2592.4,2591.9,3.85815]
[1724773584076,0.39706441,2592.4,2591.7,3.85832]
[1724773584286,4.91056,2592.5,2591.9,3.85806]
[1724773584437,3.3296,2592.5,2591.9,3.85806]
[1724773584636,3.3296,2592.5,2592.1,3.8578]
[1724773584844,3.3296,2592.5,2591.9,7.71609]
[1724773585076,3.3296,2592.5,2591.3,3.85901]
[1724773585077,7.8453662,2592.3,2591.3,3.85901]
[1724773585242,4.4176662,2592.1,2591.3,3.85901]
[1724773585439,3.3926,2592.0,2591.4,3.8589]
[1724773585648,3.83436662,2592.0,2591.5,3.85875]
[1724773586353,3.83436662,2592.0,2591.5,7.71744]
[1724773586548,3.83436662,2592.0,2591.5,7.71738]
[1724773586775,3.83436662,2592.0,2591.5,3.85869]
[1724773586983,0.38343666,2591.9,2591.5,3.85869]
[1724773587750,0.38343666,2591.9,2590.9,3.85956]
[1724773587751,7.7022662,2591.8,2590.9,3.85956]
[1724773587953,3.2846,2591.7,2591.1,3.8593]
[1724773588281,3.2846,2591.7,2591.4,3.85883]
[1724773589757,3.2846,2591.7,2591.4,7.71767]
[1724773590083,2.50843541,2591.9,2590.9,3.0]
[1724773590084,2.50843541,2591.9,2591.6,7.71705]
[1724773590258,2.50843541,2591.9,2591.6,3.85851]
[1724773591340,2.50843541,2591.9,2591.2,11.2768462]
[1724773591341,3.08376895,2591.9,2591.2,6.85914]
[1724773591655,3.2749,2591.8,2591.2,6.85914]
[1724773591852,4.35253352,2591.8,2591.2,6.85914]
[1724773592041,4.35253352,2591.8,2591.2,6.85913]
[1724773592544,4.35253352,2591.8,2591.2,3.0]
[1724773592747,3.2749,2591.7,2591.1,3.0]
[1724773592942,3.2749,2591.5,2590.8,7.71944]
[1724773593279,3.2749,2591.5,2590.8,3.85973]
[1724773593440,3.2749,2591.5,2590.9,3.85964]
[1724773593641,0.89554202,2591.4,2590.9,3.85964]
[1724773596095,3.4733,2591.3,2590.6,3.86004]
[1724773596242,8.2772562,2591.0,2590.2,3.86062]
[1724773596447,3.4733,2590.9,2590.2,3.86062]
[1724773596688,3.4733,2590.9,2590.3,3.86055]
[1724773597215,3.4733,2590.9,2590.2,3.86061]
[1724773597383,3.4733,2590.7,2589.8,3.86116]
[1724773597590,3.4676,2590.6,2589.8,3.86116]
[1724773597898,7.8852662,2590.6,2589.8,3.86116]
[1724773598185,7.8852662,2590.6,2589.8,7.72237]
[1724773598390,3.4676,2590.6,2589.8,3.86116]
[1724773598600,1.17453062,2590.5,2589.9,3.86112]
[1724773599279,1.17453062,2590.5,2589.8,3.86116]
[1724773599657,1.17453062,2590.5,2589.8,7.72237]
[1724773599964,1.17453062,2590.5,2589.9,6.86114]
[1724773600163,1.17453062,2590.5,2589.9,3.0]
[1724773601786,3.4676,2590.6,2589.9,3.0]
[1724773602014,3.4676,2590.6,2590.0,3.86098]
[1724773603535,19.49999,2590.7,2590.3,3.86047]
[1724773603735,19.49999,2590.7,2590.1,3.86075]
[1724773603940,22.05432254,2590.7,2590.1,3.86075]
[1724773604094,22.05432254,2590.7,2590.0,3.86096]
[1724773604299,3.5349,2590.6,2590.0,3.86096]
[1724773604600,2.55892225,2590.5,2589.9,6.86111]
[1724773605629,3.4465,2590.4,2589.9,3.0]
[1724773605941,3.4465,2590.4,2589.7,3.86144]
[1724773606097,0.98657023,2590.3,2589.7,3.86144]
[1724773606900,0.98657023,2590.3,2589.8,3.86127]
[1724773607100,3.4465,2590.4,2589.7,3.86136]
[1724773607627,3.4465,2590.4,2589.7,7.72273]
[1724773608139,3.4465,2590.4,2589.8,3.86129]
[1724773608300,6.127174,2590.4,2589.8,3.86129]
[1724773608726,3.4465,2590.4,2590.1,3.86082]
[1724773608959,19.49999,2590.6,2590.0,3.86097]
[1724773609172,19.49999,2590.6,2590.1,3.86078]
[1724773609326,22.02845254,2590.6,2590.1,3.86078]
[1724773609531,22.02845254,2590.6,2590.0,3.86097]
[1724773609981,22.02845254,2590.6,2589.8,3.86119]
[1724773609982,25.88856254,2590.6,2589.8,3.86119]
[1724773610146,5.47904525,2590.5,2589.8,3.86119]
[1724773610543,5.47904525,2590.5,2589.8,7.72241]
[1724773611654,5.47904525,2590.5,2589.8,7.72242]
[1724773611966,3.2762,2590.5,2589.8,7.72242]
[1724773612265,3.2762,2590.5,2589.9,3.86115]
[1724773613181,3.2762,2590.5,2589.8,3.86119]
[1724773613556,3.2762,2590.5,2589.8,7.7224]
[1724773614287,3.2762,2590.5,2589.8,3.86119]
[1724773614454,0.96647725,2590.4,2589.8,3.86119]
[1724773615697,0.96647725,2590.4,2589.6,3.86148]
[1724773615839,0.96647725,2590.4,2589.5,3.0]
[1724773615840,3.86076,2590.2,2589.5,3.0]
[1724773616066,7.31294,2590.3,2589.5,6.86171]
[1724773616271,3.4523,2590.3,2589.5,6.86171]
[1724773616506,3.4523,2590.3,2589.7,3.86142]
[1724773616507,4.183565,2590.3,2589.7,3.86142]
[1724773616968,4.183565,2590.3,2589.5,6.86171]
[1724773617285,4.183565,2590.3,2589.5,3.0]
[1724773617286,3.86086,2590.1,2589.5,3.0]
[1724773617486,3.1853,2590.0,2589.3,3.86203]
[1724773617809,3.889916,2590.0,2589.3,3.86203]
[1724773619018,3.889916,2590.0,2589.2,3.86219]
[1724773619310,7.751006,2590.0,2589.2,3.86219]
[1724773619630,7.751006,2590.0,2588.8,7.04647]
[1724773619631,3.2265,2589.6,2588.8,3.86276]
[1724773619926,3.2265,2589.6,2589.0,3.86246]
[1724773620519,3.2265,2589.6,2589.1,3.86231]
[1724773621110,3.2265,2589.6,2589.0,3.86241]
[1724773621298,3.2265,2589.6,2589.1,3.86223]
[1724773621619,3.2265,2589.6,2589.0,3.86241]
[1724773621771,3.54915,2589.6,2589.0,3.86241]
[1724773621971,3.54915,2589.6,2588.9,3.86263]
[1724773622216,3.54915,2589.6,2588.8,3.86267]
[1724773622415,3.54915,2589.6,2588.9,3.0]
[1724773622704,0.741062,2589.5,2588.9,3.0]
[1724773622906,3.224,2589.4,2588.9,3.0]
[1724773623209,3.224,2589.4,2588.7,3.0]
[1724773623415,3.224,2589.4,2588.4,7.3892]
[1724773623416,7.08614,2589.3,2588.4,7.3892]
[1724773623631,1.094811,2589.2,2588.4,7.3892]
[1724773624134,3.224,2589.1,2588.4,3.8633]
[1724773624622,3.224,2589.1,2588.6,3.86307]
[1724773625019,3.224,2589.5,2588.9,3.86259]
[1724773625183,5.154,2589.5,2588.8,4.4176662]
[1724773625382,5.701665,2589.5,2588.8,3.86267]
[1724773627623,9.563415,2589.5,2588.6,3.863]
[1724773627825,0.9886065,2589.4,2588.7,3.86293]
[1724773628816,0.9886065,2589.4,2588.6,3.863]
[1724773629030,3.86228,2589.2,2588.4,6.86329]
[1724773629191,7.08637,2589.1,2588.2,7.7272]
[1724773629526,9.59480541,2589.1,2588.2,7.7272]
[1724773629724,5.73243541,2589.1,2588.4,3.86338]
[1724773629931,5.73243541,2589.1,2588.4,3.8633]
[1724773630133,5.73243541,2589.1,2588.3,3.86351]
[1724773630287,5.73243541,2589.1,2588.4,3.86337]
[1724773630487,5.73243541,2589.1,2588.2,4.4176662]
[1724773630488,5.73243541,2589.1,2588.5,3.86323]
[1724773630723,5.73243541,2589.1,2588.2,8.2812462]